bitfinex-derivatives/quotes_BNBF0:USTF0_20250510
["timestamp","ask_amount","ask_price","bid_price","bid_amount"]
[1746898608438,0.30429821,657.25,656.86,0.63608916]
[1746898608737,0.30429821,657.25,656.87,0.63608916]
[1746898608942,0.30429821,657.25,656.88,1.81026533]
[1746898609143,0.30429821,657.25,656.89,0.63608916]
[1746898609344,0.30429821,657.25,656.9,0.63608916]
[1746898609642,0.30429821,657.25,656.91,0.63608916]
[1746898609843,0.30429821,657.25,656.92,0.63608916]
[1746898610043,0.30429821,657.25,656.93,0.63608916]
[1746898610243,0.30429821,657.25,656.94,0.63608916]
[1746898610444,0.30429821,657.25,656.95,0.63608916]
[1746898610644,0.30429821,657.25,656.96,1.17417617]
[1746898611340,0.30429821,657.25,656.97,1.17417617]
[1746898612041,0.30429821,657.25,656.98,1.17417617]
[1746898612247,0.30429821,657.25,656.99,1.17417617]
[1746898613045,0.30429821,657.25,657.0,1.17417617]
[1746898613848,0.30429821,657.25,657.01,1.17417617]
[1746898614147,0.30429821,657.25,657.02,1.17417617]
[1746898614749,0.30429821,657.25,657.03,1.17417617]
[1746898615241,0.30429821,657.25,657.04,1.17417617]
[1746898615548,0.30429821,657.25,657.05,1.17417617]
[1746898616151,0.30429821,657.25,657.06,1.17417617]
[1746898616750,0.30429821,657.25,655.85,0.9657312]
[1746898616751,0.30429821,657.25,657.07,1.17417617]
[1746898617151,0.30429821,657.25,657.08,1.17417617]
[1746898617549,0.30429821,657.25,657.09,1.17417617]
[1746898617945,0.30429821,657.25,657.1,1.17417617]
[1746898618150,0.30429821,657.25,657.11,0.63629101]
[1746898618449,0.30429821,657.25,657.12,0.63633766]
[1746898618647,0.30429821,657.25,657.13,0.63632122]
[1746898618953,0.30429821,657.25,657.14,1.17417617]
[1746898619153,0.30429821,657.25,657.15,1.17417617]
[1746898619346,0.30429821,657.25,657.16,0.63622148]
[1746898619548,0.30429821,657.25,657.15,1.17417617]
[1746898619854,0.30429821,657.25,657.16,1.81034294]
[1746898620053,0.30429821,657.25,657.16,1.17417617]
[1746898620449,0.30429821,657.25,657.17,1.17417617]
[1746898620753,0.30429821,657.25,657.18,1.17417617]
[1746898621350,0.30429821,657.25,657.19,1.17417617]
[1746898621852,0.30429821,657.25,656.13,0.9657312]
[1746898622052,0.30429821,657.25,656.14,0.91580916]
[1746898622354,0.30429821,657.25,656.15,0.91580916]
[1746898622549,0.30429821,657.25,656.28,0.9657312]
[1746898622749,0.30429821,657.25,656.29,0.91580916]
[1746898622949,0.30429821,657.25,656.3,2.09408197]
[1746898623149,0.30429821,657.25,656.31,0.91580916]
[1746898623355,0.30429821,657.25,656.32,0.91580916]
[1746898623558,0.30429821,657.25,656.33,2.09408435]
[1746898623757,0.30429821,657.25,656.34,0.91581154]
[1746898623956,0.30429821,657.25,656.35,2.09408435]
[1746898624254,0.30429821,657.25,656.36,0.91581154]
[1746898624455,0.30429821,657.25,656.37,0.91581154]
[1746898624757,0.30429821,657.25,656.38,0.63639756]
[1746898624957,0.30429821,657.25,656.39,0.63639756]
[1746898625155,0.30429821,657.25,656.4,1.81467037]
[1746898625355,0.30429821,657.25,656.41,0.63639756]
[1746898625555,0.30429821,657.25,656.42,0.63639756]
[1746898625755,0.30429821,657.25,656.43,1.81467037]
[1746898625956,0.30429821,657.25,656.44,0.63639756]
[1746898626152,0.30429821,657.25,656.45,0.63639756]
[1746898626459,0.30429821,657.25,656.46,0.63639756]
[1746898626651,0.30429821,657.25,656.47,0.63639756]
[1746898626852,0.30429821,657.25,656.48,0.63639756]
[1746898627054,0.30429821,657.25,656.49,0.63639756]
[1746898627253,0.30429821,657.25,656.5,0.63639756]
[1746898627452,0.30429821,657.25,656.51,0.63639756]
[1746898627655,0.30429821,657.25,656.52,0.63639756]
[1746898627954,0.30429821,657.25,656.53,0.63639756]
[1746898628158,0.30429821,657.25,656.54,1.81467037]
[1746898628356,0.30429821,657.25,656.55,0.63648883]
[1746898628552,0.30429821,657.25,656.56,0.63648883]
[1746898628752,0.30429821,657.25,656.57,0.63648883]
[1746898628953,0.30429821,657.25,656.58,0.63648883]
[1746898629254,0.30429821,657.25,656.59,0.63648883]
[1746898629455,0.30429821,657.25,656.57,1.17827281]
[1746898629456,0.30429821,657.25,656.6,0.63648883]
[1746898629656,0.30429821,657.25,656.61,0.63648883]
[1746898629956,0.30429821,657.25,656.62,0.63648883]
[1746898630258,0.30429821,657.25,656.63,1.81476164]
[1746898630450,0.30429821,657.25,656.64,0.63648883]
[1746898630656,0.30429821,657.25,656.65,0.63648883]
[1746898630852,0.30429821,657.25,656.66,0.63648883]
[1746898631151,0.30429821,657.25,656.67,1.81476164]
[1746898631352,0.30429821,657.25,656.68,0.63648883]
[1746898631553,0.30429821,657.25,656.69,1.81476164]
[1746898631754,0.30429821,657.25,656.7,0.63648883]
[1746898632057,0.30429821,657.25,656.71,1.81476164]
[1746898632253,0.30429821,657.25,656.72,0.63648883]
[1746898632457,0.30429821,657.25,656.73,0.63648883]
[1746898632659,0.30429821,657.25,656.74,1.81476164]
[1746898632856,0.30429821,657.25,656.75,1.81476164]
[1746898633058,0.30429821,657.25,656.76,0.63648883]
[1746898633360,0.30429821,657.25,656.77,0.63648883]
[1746898633554,0.30429821,657.25,656.78,0.63648883]
[1746898633753,0.30429821,657.25,656.79,0.63648883]
[1746898633954,0.30429821,657.25,656.8,0.63648883]
[1746898634156,0.30429821,657.25,656.81,0.63648883]
[1746898634354,0.30429821,657.25,656.82,1.81476164]
[1746898634655,0.30429821,657.25,656.83,0.63648883]
[1746898634857,0.30429821,657.25,656.84,0.63648883]
[1746898635055,0.30429821,657.25,656.85,1.81476164]
[1746898635260,0.30429821,657.25,656.86,1.81476164]
[1746898635561,0.30429821,657.25,656.87,0.63648883]
[1746898635860,0.30429821,657.25,656.88,0.63648883]
[1746898636159,0.30429821,657.25,656.89,1.81476164]
[1746898636362,0.30429821,657.25,656.9,0.63648883]
[1746898636560,0.30429821,657.25,656.91,1.81476164]
[1746898636761,0.30429821,657.25,656.92,0.63648883]
[1746898636955,0.30429821,657.25,656.93,1.81476164]
[1746898637159,0.30429821,657.25,656.94,0.63648883]
[1746898637355,0.30429821,657.25,656.95,0.63648883]
[1746898637555,0.30429821,657.25,656.96,0.63648883]
[1746898637860,0.30429821,657.25,656.97,1.81476164]
[1746898638159,0.30429821,657.25,656.98,0.63648883]
[1746898638363,0.30429821,657.25,656.99,0.63648883]
[1746898638560,0.30429821,657.25,657.0,1.81476164]
[1746898638759,0.30429821,657.25,657.01,0.63648883]
[1746898638960,0.30429821,657.25,657.02,1.81476164]
[1746898639259,0.30429821,657.25,657.03,0.63648883]
[1746898639462,0.30429821,657.25,657.04,0.63648883]
[1746898639656,0.30429821,657.25,657.05,0.63648883]
[1746898639960,0.30429821,657.25,657.06,1.81476164]
[1746898640156,0.30429821,657.25,657.07,0.63648883]
[1746898640356,0.30429821,657.25,657.08,0.63648883]
[1746898640558,0.30429821,657.25,657.09,1.81476164]
[1746898640757,0.30429821,657.25,657.1,0.63648883]
[1746898640960,0.30429821,657.25,657.11,0.63648883]
[1746898641156,0.30429821,657.25,657.12,1.81476164]
[1746898641359,0.30429821,657.25,657.13,0.63648883]
[1746898641560,0.30429821,657.25,657.14,1.81476164]
[1746898641761,0.30429821,657.25,657.15,0.63648883]
[1746898642061,0.30429821,657.25,657.16,0.63648883]
[1746898642257,0.30429821,657.25,657.17,1.81476164]
[1746898642561,0.30429821,657.25,657.18,0.63648883]
[1746898642760,0.30429821,657.25,657.19,0.63530616]
[1746898643059,0.30429821,657.25,657.2,1.81357897]
[1746898643263,0.30429821,657.25,657.21,0.63530616]
[1746898643560,0.30429821,657.25,657.22,0.63530616]
[1746898643758,0.30429821,657.25,657.23,0.63530616]
[1746898643959,0.30429821,657.25,657.24,1.81357897]
[1746898646262,0.30429821,657.25,657.24,1.17827281]
[1746898646462,0.30429821,657.25,657.24,1.81336585]
[1746898647462,0.30429821,657.25,657.24,1.17827281]
[1746898657167,0.30429821,657.25,657.24,1.79666665]
[1746898663179,0.60858716,657.26,657.24,1.79666665]
[1746898663380,0.60858716,657.26,657.25,0.61839384]
[1746898663679,0.60858716,657.26,657.25,1.79666665]
[1746898664181,0.60858716,657.26,657.25,1.17827281]
[1746898664379,0.60858716,657.26,657.25,1.79553249]
[1746898665080,0.60858716,657.26,657.25,1.17827281]
[1746898665281,0.60858716,657.26,657.25,1.79534256]
[1746898666082,0.60858716,657.26,657.25,1.17827281]
[1746898666282,0.60858716,657.26,657.25,1.79528405]
[1746898673381,0.60858716,657.26,656.5,0.9657312]
[1746898673581,0.60858716,657.26,657.25,1.16883987]
[1746898673883,0.60858716,657.26,657.25,1.7694046]
[1746898676282,0.60858716,657.26,657.25,1.76948597]
[1746898680690,0.60858716,657.26,657.25,1.77145024]
[1746898681690,0.60858716,657.26,657.25,1.77145139]
[1746898682092,0.60858716,657.26,657.25,1.77141895]
[1746898691002,0.60858716,657.26,657.25,1.77209858]
[1746898692804,0.60858716,657.26,657.25,1.77231569]
[1746898698203,0.60858716,657.26,657.25,1.77274371]
[1746898700012,0.60858716,657.26,657.25,1.77282848]
[1746898702407,0.60858716,657.26,657.25,1.77330939]
[1746898705411,0.60858716,657.26,657.25,1.7736217]
[1746898707013,0.60858716,657.26,657.25,1.77352336]
[1746898707210,0.60858716,657.26,657.25,1.77341934]
[1746898707408,0.264673,658.15,657.25,1.77341934]
[1746898707709,0.30389132,658.13,657.26,0.60457947]
[1746898708013,0.30389132,658.13,657.27,0.60457947]
[1746898708210,0.30389132,658.13,657.28,0.60457947]
[1746898708407,0.30389132,658.13,657.29,0.60457947]
[1746898708708,0.30389132,658.13,657.3,1.77341934]
[1746898708909,0.30389132,658.13,657.31,0.60457947]
[1746898709112,0.30389132,658.13,657.32,0.60457947]
[1746898709413,0.30389132,658.13,657.33,1.77377628]
[1746898709614,0.30389132,658.13,657.34,0.60493641]
[1746898709812,0.30389132,658.13,657.35,0.60493641]
[1746898710017,0.30389132,658.13,657.36,1.77377628]
[1746898710214,0.30389132,658.13,657.37,0.60493641]
[1746898710418,0.30389132,658.13,657.38,1.77377628]
[1746898710618,0.30389132,658.13,657.39,0.60493641]
[1746898710819,0.30389132,658.13,657.4,0.60493641]
[1746898711012,0.30389132,658.13,657.41,0.60493641]
[1746898711216,0.30389132,658.13,657.42,0.60493641]
[1746898711415,0.30389132,658.13,657.43,1.77377628]
[1746898711715,0.30389132,658.13,657.44,1.77377628]
[1746898711920,0.30389132,658.13,657.45,1.77377628]
[1746898712227,0.30389132,658.13,657.46,0.60509463]
[1746898712520,0.30389132,658.13,657.47,1.7739345]
[1746898712719,0.30389132,658.13,657.48,0.60509463]
[1746898712917,0.30389132,658.13,657.49,0.60509463]
[1746898713114,0.30389132,658.13,657.5,1.7739345]
[1746898713321,0.30389132,658.13,657.51,0.60509463]
[1746898713622,0.30389132,658.13,657.52,1.7739345]
[1746898713915,0.30389132,658.13,657.53,0.60509463]
[1746898714115,0.30389132,658.13,657.54,1.7739345]
[1746898714319,0.30389132,658.13,657.55,0.60509463]
[1746898714519,0.30389132,658.13,657.56,1.77415647]
[1746898714719,0.30389132,658.13,657.57,0.6053166]
[1746898715020,0.26128296,658.12,657.58,0.6053166]
[1746898715215,0.30390056,658.11,657.59,1.77415647]
[1746898715418,0.30390056,658.11,657.6,0.6053166]
[1746898715618,0.30390056,658.11,657.61,0.6053166]
[1746898715921,0.30390056,658.11,657.62,1.77415647]
[1746898716115,0.30390056,658.11,657.63,0.6053166]
[1746898716317,0.30390056,658.11,657.64,0.6053166]
[1746898716514,0.30390056,658.11,657.65,0.6053166]
[1746898716719,0.30390056,658.11,657.66,1.77415647]
[1746898716921,0.30390056,658.11,657.67,0.6053166]
[1746898717121,0.30390056,658.11,657.68,0.6053166]
[1746898717316,0.30390056,658.11,657.69,0.6053166]
[1746898717521,0.30390056,658.11,657.7,1.77415647]
[1746898717721,0.30390056,658.11,657.71,0.6053166]
[1746898717921,0.30390056,658.11,657.72,0.60519946]
[1746898718118,0.30390056,658.11,657.73,0.60519946]
[1746898718317,0.30390056,658.11,657.74,1.77403933]
[1746898718519,0.30390056,658.11,657.75,0.60519946]
[1746898718723,0.30390056,658.11,657.76,1.77403933]
[1746898718919,0.30390056,658.11,657.77,0.60519946]
[1746898719118,0.30390056,658.11,657.76,1.16883987]
[1746898719322,0.30390056,658.11,657.77,1.16883987]
[1746898719521,0.30390056,658.11,656.77,0.9657312]
[1746898719721,0.30390056,658.11,656.78,0.60506245]
[1746898720022,0.30390056,658.11,656.79,1.77106613]
[1746898720217,0.30390056,658.11,656.8,0.60506245]
[1746898720522,0.30390056,658.11,656.81,1.77106613]
[1746898720724,0.30390056,658.11,656.82,2.0504538]
[1746898720926,0.30390056,658.11,656.83,0.60506245]
[1746898721126,0.30390056,658.11,656.84,1.77106613]
[1746898721325,0.30390056,658.11,656.85,0.60506245]
[1746898721527,0.30390056,658.11,656.86,0.60506245]
[1746898721719,0.30390056,658.11,656.82,0.26459653]
[1746898721720,0.30390056,658.11,656.87,0.60506245]
[1746898721923,0.30390056,658.11,656.88,0.60506245]
[1746898722123,0.30390056,658.11,656.89,1.77106613]
[1746898722325,0.30390056,658.11,656.9,0.60506245]
[1746898722527,0.30390056,658.11,656.91,2.05045948]
[1746898722722,0.30390056,658.11,656.92,0.8844558]
[1746898722928,0.30390056,658.11,656.93,1.77106613]
[1746898723130,0.30390056,658.11,656.94,0.60506245]
[1746898723324,0.30390056,658.11,656.95,1.77067726]
[1746898723531,0.30390056,658.11,656.96,0.60467358]
[1746898723826,0.30390056,658.11,656.97,1.77067726]
[1746898724028,0.30390056,658.11,656.98,0.60467358]
[1746898724222,0.30390056,658.11,656.99,0.60467358]
[1746898724425,0.30390056,658.11,657.0,0.60467358]
[1746898724626,0.30390056,658.11,657.01,0.60467358]
[1746898724827,0.30390056,658.11,657.02,0.60467358]
[1746898725024,0.30390056,658.11,657.03,0.60467358]
[1746898725228,0.26123791,658.1,657.04,0.60467358]
[1746898725427,0.30390056,658.11,657.05,0.60451699]
[1746898725624,0.30390056,658.11,657.06,0.60451699]
[1746898725826,0.2612365,658.1,657.07,0.60451699]
[1746898726027,0.30391441,658.08,657.08,0.60451699]
[1746898726229,0.30391441,658.08,657.09,0.60451699]
[1746898726423,0.30391441,658.08,657.1,0.60451699]
[1746898726630,0.30391441,658.08,657.11,0.60451699]
[1746898726930,0.30391441,658.08,657.12,0.60451699]
[1746898727131,0.30391441,658.08,657.13,0.60451699]
[1746898727426,0.30391441,658.08,657.14,1.77052067]
[1746898727629,0.30391441,658.08,657.15,1.77052067]
[1746898727826,0.30391441,658.08,657.16,0.60451699]
[1746898728026,0.30391441,658.08,657.17,0.60451699]
[1746898728229,0.30391441,658.08,657.18,1.77052067]
[1746898728531,0.30391441,658.08,657.19,1.77052067]
[1746898728732,0.30391441,658.08,657.2,0.60420143]
[1746898729029,0.30391441,658.08,657.21,0.60420143]
[1746898729231,0.30391441,658.08,657.22,1.77020511]
[1746898729424,0.30391441,658.08,657.23,0.60420143]
[1746898729639,0.30391441,658.08,657.24,0.60420143]
[1746898729829,0.30391441,658.08,657.25,0.60420143]
[1746898730031,0.30391441,658.08,657.26,0.60420143]
[1746898730331,0.30391441,658.08,657.27,1.77020511]
[1746898730526,0.30391441,658.08,657.28,0.60402845]
[1746898730728,0.30391441,658.08,657.29,0.60402845]
[1746898730925,0.30391441,658.08,657.3,0.60402845]
[1746898731132,0.30391441,658.08,657.31,0.60402845]
[1746898731331,0.30391441,658.08,657.32,1.77003213]
[1746898731532,0.30391441,658.08,657.33,0.60402845]
[1746898731732,0.30391441,658.08,657.34,1.77003213]
[1746898731938,0.30391441,658.08,657.35,0.60402845]
[1746898732235,0.30391441,658.08,657.36,1.77003213]
[1746898732435,0.30391441,658.08,657.37,0.60402845]
[1746898732636,0.30391441,658.08,657.38,0.60402845]
[1746898732838,0.30391441,658.08,657.39,0.60402845]
[1746898733142,0.30391441,658.08,657.4,1.77003213]
[1746898733438,0.30391441,658.08,657.41,0.60402845]
[1746898733639,0.30391441,658.08,657.42,1.77003213]
[1746898733937,0.30391441,658.08,657.43,0.60402845]
[1746898734138,0.30391441,658.08,657.44,0.60402845]
[1746898734338,0.30391441,658.08,657.45,0.60402845]
[1746898734533,0.30391441,658.08,657.46,0.60402845]
[1746898734734,0.30391441,658.08,657.47,1.77003213]
[1746898734936,0.30391441,658.08,657.48,0.60402845]
[1746898735134,0.30391441,658.08,657.49,1.7702635]
[1746898735341,0.30391441,658.08,657.5,0.60425982]
[1746898735639,0.30391441,658.08,657.51,1.7702635]
[1746898735840,0.30391441,658.08,657.52,0.60425982]
[1746898736041,0.30391441,658.08,657.53,1.76987548]
[1746898736241,0.30391441,658.08,657.54,0.6038718]
[1746898736541,0.30391441,658.08,657.55,1.76987548]
[1746898736742,0.30391441,658.08,657.56,0.6038718]
[1746898736938,0.30391441,658.08,657.57,1.76987548]
[1746898737142,0.30391441,658.08,657.58,0.6038718]
[1746898737339,0.30391441,658.08,657.59,1.76987548]
[1746898737537,0.30391441,658.08,657.6,0.6038718]
[1746898737741,0.30391441,658.08,657.61,0.6038718]
[1746898737938,0.30391441,658.08,657.62,1.76987548]
[1746898738140,0.30391441,658.08,657.63,1.76987548]
[1746898738341,0.30391441,658.08,657.64,0.6038718]
[1746898738545,0.30391441,658.08,657.65,0.6038718]
[1746898738744,0.30391441,658.08,657.2,0.26449899]
[1746898738745,0.30391441,658.08,657.66,1.76987548]
[1746898738945,0.30391441,658.08,657.67,0.6038718]
[1746898739146,0.30391441,658.08,657.68,1.76987548]
[1746898739342,0.30391441,658.08,657.69,0.6038718]
[1746898739541,0.30391441,658.08,657.7,1.76987548]
[1746898739740,0.30391441,658.08,657.7,1.16600368]
[1746898740247,0.30391441,658.08,657.71,1.77024027]
[1746898740546,0.30391441,658.08,657.72,1.16600368]
[1746898741248,0.30391441,658.08,657.73,1.16600368]
[1746898741647,0.30391441,658.08,657.74,1.16600368]
[1746898741843,0.30391441,658.08,657.75,1.16600368]
[1746898742449,0.30391441,658.08,657.2,0.26449899]
[1746898742749,0.30391441,658.08,657.21,0.6038577]
[1746898742943,0.30391441,658.08,657.22,0.6038577]
[1746898743149,0.30391441,658.08,657.23,0.6038577]
[1746898743345,0.30391441,658.08,657.24,0.6038577]
[1746898743546,0.30391441,658.08,657.25,1.77198992]
[1746898743743,0.30391441,658.08,657.26,0.6038577]
[1746898744045,0.30391441,658.08,657.27,1.77198992]
[1746898744249,0.30391441,658.08,657.28,0.6038577]
[1746898744444,0.30391441,658.08,657.29,0.60376234]
[1746898744644,0.30391441,658.08,657.3,1.77189456]
[1746898744848,0.30391441,658.08,657.31,0.60376234]
[1746898745149,0.30391441,658.08,657.32,0.60376234]
[1746898745347,0.30391441,658.08,657.33,1.77189456]
[1746898745547,0.30391441,658.08,657.34,0.60376234]
[1746898745845,0.30391441,658.08,657.35,1.77189456]
[1746898746045,0.30391441,658.08,657.36,1.77189456]
[1746898746243,0.30391441,658.08,657.37,0.60343096]
[1746898746548,0.30391441,658.08,657.38,1.77156318]
[1746898746747,0.30391441,658.08,657.39,0.60343096]
[1746898747043,0.30391441,658.08,657.4,0.60343096]
[1746898747247,0.30391441,658.08,657.41,0.60343096]
[1746898747547,0.30391441,658.08,657.42,0.60343096]
[1746898747748,0.30391441,658.08,657.43,0.60343096]
[1746898747943,0.30391441,658.08,657.44,1.77156318]
[1746898748145,0.30391441,658.08,657.45,0.60343096]
[1746898748347,0.30391441,658.08,657.46,1.77156318]
[1746898748644,0.30391441,658.08,657.47,0.60343096]
[1746898748844,0.30391441,658.08,657.48,1.77156318]
[1746898749044,0.30391441,658.08,657.49,0.60343096]
[1746898749248,0.30391441,658.08,657.5,0.60343096]
[1746898749449,0.30391441,658.08,657.51,1.77156318]
[1746898749746,0.30391441,658.08,657.52,0.60343096]
[1746898749947,0.30391441,658.08,657.53,0.60343096]
[1746898750248,0.30391441,658.08,657.54,1.77156318]
[1746898750444,0.30391441,658.08,657.55,0.60343096]
[1746898750646,0.30391441,658.08,657.56,0.60343096]
[1746898750846,0.30391441,658.08,657.57,0.60343096]
[1746898751047,0.30391441,658.08,657.58,0.60343096]
[1746898751247,0.30391441,658.08,657.59,0.60343096]
[1746898751443,0.30391441,658.08,657.6,0.60343096]
[1746898751651,0.30391441,658.08,657.61,0.60343096]
[1746898751845,0.30391441,658.08,657.62,0.60343096]
[1746898752048,0.30391441,658.08,657.63,1.77156318]
[1746898752349,0.30391441,658.08,657.64,0.60343096]
[1746898752550,0.30391441,658.08,657.65,1.77156318]
[1746898752750,0.30391441,658.08,657.66,0.60343096]
[1746898752947,0.30391441,658.08,657.67,0.60343096]
[1746898753151,0.30391441,658.08,657.68,0.60343096]
[1746898753450,0.30391441,658.08,657.69,0.60343096]
[1746898753647,0.30391441,658.08,657.7,1.77156318]
[1746898753847,0.30391441,658.08,657.71,0.60343096]
[1746898754051,0.30391441,658.08,657.72,0.60343096]
[1746898754249,0.30391441,658.08,657.73,1.77156318]
[1746898754452,0.30391441,658.08,657.74,0.60343096]
[1746898754650,0.30391441,658.08,657.75,1.77156318]
[1746898754848,0.30391441,658.08,657.76,0.60343096]
[1746898755047,0.30391441,658.08,657.77,0.60343096]
[1746898755353,0.30391441,658.08,657.78,0.60472796]
[1746898755546,0.30391441,658.08,657.79,0.60472796]
[1746898755750,0.30391441,658.08,657.8,1.77286018]
[1746898755949,0.30391441,658.08,657.81,0.60472796]
[1746898756148,0.30391441,658.08,657.82,0.60472796]
[1746898756353,0.30391441,658.08,657.83,1.77286018]
[1746898756549,0.30391441,658.08,657.84,0.60472796]
[1746898756748,0.30391441,658.08,657.85,0.60472796]
[1746898756947,0.30391441,658.08,657.86,0.60472796]
[1746898757153,0.30391441,658.08,657.87,0.60472796]
[1746898757449,0.30391441,658.08,657.88,1.77286018]
[1746898757650,0.30391441,658.08,657.89,0.60472796]
[1746898757848,0.30391441,658.08,657.9,1.77286018]
[1746898758048,0.30391441,658.08,657.91,0.60472796]
[1746898758249,0.30391441,658.08,657.92,0.60472796]
[1746898758453,0.30391441,658.08,657.93,1.77286018]
[1746898758650,0.30391441,658.08,657.94,0.60472796]
[1746898758854,0.30391441,658.08,657.93,1.16813222]
[1746898759050,0.30391441,658.08,657.94,0.60386228]
[1746898759253,0.30391441,658.08,657.93,1.16813222]
[1746898759454,0.30391441,658.08,657.94,1.16813222]
[1746898759850,0.30391441,658.08,657.95,1.16813222]
[1746898760554,0.30391441,658.08,657.96,1.16813222]
[1746898761058,0.30391441,658.08,657.97,1.16813222]
[1746898761654,0.30391441,658.08,657.98,1.16813222]
[1746898762656,0.30391441,658.08,656.89,0.9657312]
[1746898762855,0.30391441,658.08,656.9,0.60374092]
[1746898763056,0.30391441,658.08,656.91,1.77033211]
[1746898763352,0.30391441,658.08,656.92,0.88300748]
[1746898763558,0.30391441,658.08,656.93,2.04959867]
[1746898763857,0.30391441,658.08,656.94,2.04959867]
[1746898764056,0.30391441,658.08,656.95,0.60374092]
[1746898764357,0.30391441,658.08,656.96,0.60374092]
[1746898764557,0.30391441,658.08,656.97,0.60374092]
[1746898764752,0.30391441,658.08,656.98,1.77033211]
[1746898765055,0.30391441,658.08,656.99,1.77033211]
[1746898765259,0.30391441,658.08,657.0,0.60374092]
[1746898765458,0.30391441,658.08,657.01,1.77033211]
[1746898765758,0.30391441,658.08,657.02,0.60374092]
[1746898765952,0.30391441,658.08,657.03,0.88301098]
[1746898766157,0.30391441,658.08,657.04,1.77033211]
[1746898766352,0.30391441,658.08,657.05,0.60374092]
[1746898766557,0.30391441,658.08,657.06,0.60374092]
[1746898766754,0.30391441,658.08,657.07,0.60374092]
[1746898766957,0.30391441,658.08,657.08,0.60374092]
[1746898767156,0.30391441,658.08,657.09,0.60374092]
[1746898767355,0.30391441,658.08,657.1,0.88301098]
[1746898767557,0.30391441,658.08,657.11,0.60391711]
[1746898767857,0.30391441,658.08,657.12,0.60391711]
[1746898768052,0.30391441,658.08,657.13,0.60391711]
[1746898768253,0.30391441,658.08,657.14,0.60391711]
[1746898768455,0.30391441,658.08,657.15,0.60391711]
[1746898768753,0.30391441,658.08,657.16,0.60391711]
[1746898768953,0.30391441,658.08,657.17,1.7705083]
[1746898769157,0.30391441,658.08,657.18,0.60391711]
[1746898769355,0.30391441,658.08,657.19,0.60391711]
[1746898769560,0.30391441,658.08,657.2,1.7705083]
[1746898769758,0.30391441,658.08,657.21,0.60391711]
[1746898769957,0.30391441,658.08,657.22,0.60391711]
[1746898770155,0.30391441,658.08,657.23,0.60391711]
[1746898770461,0.30391441,658.08,657.24,1.7705083]
[1746898770663,0.30391441,658.08,657.25,1.7705083]
[1746898770861,0.30391441,658.08,657.26,0.60391711]
[1746898771162,0.30391441,658.08,657.27,1.7705083]
[1746898771464,0.30391441,658.08,657.28,1.7705083]
[1746898771762,0.30391441,658.08,657.29,0.60391711]
[1746898771957,0.30391441,658.08,657.3,1.7705083]
[1746898772158,0.30391441,658.08,657.31,0.60391711]
[1746898772358,0.30391441,658.08,657.32,1.7705083]
[1746898772559,0.30391441,658.08,657.33,1.7705083]
[1746898772760,0.30391441,658.08,657.34,0.60391711]
[1746898773059,0.30391441,658.08,657.35,1.7705083]
[1746898773360,0.30391441,658.08,657.36,1.7705083]
[1746898773561,0.30391441,658.08,657.37,0.60391711]
[1746898773762,0.30391441,658.08,657.38,0.60391711]
[1746898773963,1.97993894,659.99,657.39,1.7705083]
[1746898774164,0.26436838,658.86,657.4,0.60391711]
[1746898774366,0.30356383,658.84,657.41,1.7705083]
[1746898774563,0.30356383,658.84,657.42,0.60391711]
[1746898774759,0.30356383,658.84,657.43,1.7705083]
[1746898774961,0.30356383,658.84,657.44,0.60391711]
[1746898775163,0.30356383,658.84,657.45,0.60391711]
[1746898775363,0.26437039,658.83,657.46,0.60391711]
[1746898775562,0.30357766,658.81,657.47,1.7705083]
[1746898775758,0.30357766,658.81,657.48,0.60391711]
[1746898776063,0.30357766,658.81,657.49,2.04966046]
[1746898776258,0.30357766,658.81,657.5,0.60391711]
[1746898776464,0.30357766,658.81,657.51,0.60391711]
[1746898776657,0.26098769,658.8,657.52,0.60391711]
[1746898776858,0.26098769,658.8,657.53,0.60391711]
[1746898777158,0.26098769,658.8,657.54,0.60391711]
[1746898777362,0.30359148,658.78,657.55,0.60391711]
[1746898777562,0.30359148,658.78,657.56,0.60391711]
[1746898777762,0.30359148,658.78,657.57,0.60391711]
[1746898778062,0.30359148,658.78,657.58,0.60391711]
[1746898778259,0.30359148,658.78,657.59,0.60391711]
[1746898778565,0.26103974,658.77,657.6,0.60391711]
[1746898778766,0.30359148,658.78,657.61,1.7705083]
[1746898778965,0.30359148,658.78,657.62,0.60391711]
[1746898779268,0.30359148,658.78,657.63,1.7705083]
[1746898779465,0.30359148,658.78,657.64,0.60391711]
[1746898779671,0.26426499,658.77,657.65,1.7705083]
[1746898779868,0.26426499,658.77,657.66,0.60391711]
[1746898780166,0.26426499,658.77,657.67,0.60391711]
[1746898780361,0.26426499,658.77,657.68,1.7705083]
[1746898780566,0.26426499,658.77,657.69,0.60391711]
[1746898780767,0.26426499,658.77,657.7,0.60391711]
[1746898780959,0.26426499,658.77,657.68,1.16659119]
[1746898780960,0.30360531,658.75,657.71,0.60391711]
[1746898781164,0.30360531,658.75,657.72,0.60391711]
[1746898781363,0.30360531,658.75,657.73,0.60391711]
[1746898781560,0.30360531,658.75,657.74,0.60391711]
[1746898781765,0.30360531,658.75,657.75,0.60305422]
[1746898781965,0.30360531,658.75,657.76,0.60305422]
[1746898782268,0.30360531,658.75,657.77,1.76964541]
[1746898782467,0.30360531,658.75,657.78,0.60305422]
[1746898782764,0.30360531,658.75,657.79,0.60305422]
[1746898782971,0.30360531,658.75,657.78,1.16659119]